Cogmind - Beta 9.4 @@@ ROGUE MODE // 2020.03.06 @ 22:20:19 Player: Beanchilla Result: Destroyed by L-31 Rogue with Katana Performance ------------- Evolutions (1) 500 Regions Visited (3) 600 Robots Destroyed (7) 35 Value Destroyed (150) 150 Prototype IDs (0) 0 Alien Tech Used (0) 0 Bonus (171) 171 TOTAL SCORE: 1456 Bonus ------- Follower Combat Kills 171 Cogmind --------- Core Integrity 0/400 Matter 255/300 Energy 100/100 System Corruption 0% Temperature Cool (0) Movement Core (300) Ox5 Location -9/Materials Parts ------- > --- POWER (1) -------- (None) > --- PROPULSION (3) --- (None) > --- UTILITY (3) ------ Large Storage Unit > --- WEAPON (2) ------- (None) > --- INVENTORY (10) --- Ion Engine Aluminum Leg Small Storage Unit Medium Storage Unit Large Matter Pod (132) Visual Processing Unit Terrain Scanner Targeting Computer Grenade Launcher Peak State ------------ > --- POWER ------------ Ion Engine > --- PROPULSION ------- Aluminum Leg Aluminum Leg Aluminum Leg > --- UTILITY ---------- Large Storage Unit ECM Suite Weapon Shielding > --- WEAPON ----------- Electrolaser Bore Cannon > --- INVENTORY -------- Ion Engine Aluminum Leg Small Storage Unit Medium Storage Unit Large Matter Pod Visual Processing Unit Terrain Scanner Targeting Computer Electrolaser Grenade Launcher [Rating: 16] Favorites ----------- Power Light Ion Engine Engine Light Ion Engine Propulsion Aluminum Leg Leg Aluminum Leg Hover Unit Hover Unit Utility Large Storage Unit Device Terrain Scanner Storage Large Storage Unit Protection Weapon Shielding Weapon Light Assault Rifle Energy Gun Small Laser Ballistic Gun Light Assault Rifle Ballistic Cannon Bore Cannon Build | -11 -10 -10 -9 ------- Run | Scr Mat Min Mat Slots Evolved 2 | . . . 2 Power . | . . . . Propulsion 1 | . . . 1 Utility 1 | . . . 1 Weapon . | . . . . Parts Attached 26 | 6 8 5 7 Power 2 | 1 . 1 . Engine 2 | 1 . 1 . Core . | . . . . Reactor . | . . . . Propulsion 8 | 2 2 3 1 Treads . | . . . . Leg 6 | 2 . 3 1 Wheel . | . . . . Hover 2 | . 2 . . Flight . | . . . . Utility 8 | 1 5 . 2 Device 2 | . 1 . 1 Storage 5 | 1 3 . 1 Processor . | . . . . Hackware . | . . . . Protection 1 | . 1 . . Artifact . | . . . . Weapon 8 | 2 1 1 4 Energy Gun 4 | 1 . . 3 Energy Cannon . | . . . . Ballistic Gun 2 | 1 1 . . Ballistic Cannon 2 | . . 1 1 Launcher . | . . . . Special Weapon . | . . . . Impact Weapon . | . . . . Slashing Weapon . | . . . . Piercing Weapon . | . . . . Special Melee Weapon . | . . . . Unidentified Prototypes . | . . . . Parts Lost 9 | . . . 9 Power 1 | . . . 1 Propulsion 3 | . . . 3 Utility 2 | . . . 2 Weapon 3 | . . . 3 Highest Loss Streak 8 | . . . 8 Average Slot Usage (%) 96 | . 97 99 85 Engine 13 | . 14 13 9 Leg 18 | . 25 12 27 Hover 8 | . 1 15 . Device 4 | . 11 . 8 Storage 13 | . 14 14 11 Protection 9 | . . 14 8 Energy Gun 5 | . 14 . 7 Ballistic Gun 11 | . 14 14 2 Ballistic Cannon 8 | . . 13 9 Naked Turns . | . . . . Heaviest Build 35 | 9 22 32 35 Greatest Support 30 | 20 20 20 30 Greatest Overweight (x) 8 | . 7 5 8 Average Overweight (x) . | . . 1 1 Largest Inventory Capacity 10 | 6 10 10 10 Average Capacity 9 | 5 8 10 10 Most Carried 10 | 3 10 10 10 Average Carried 7 | . 4 9 9 Final Capacity 10 | 6 10 10 10 Final Carried 9 | 1 9 9 9 Class Distribution -------------------- 86% | Mutant 13% | Scavenger-Mutant Dominant Class ---------------- Mutant | -10/Materials Mutant | -10/Mines Scavenger-Mutant | -9/Materials Resources | -11 -10 -10 -9 ----------- Run | Scr Mat Min Mat Matter Collected 645 | 239 164 183 59 Remotely . | . . . . Salvage Created 171 | . . 16 155 Parts 13 | . . . 13 Haulers Intercepted . | . . . . Recyclers Shooed 1 | . . 1 . Parts Field Recycled . | . . . . Retrieved Matter . | . . . . Parts Self-Destructed . | . . . . Prevented . | . . . . Kills | -11 -10 -10 -9 ------- Run | Scr Mat Min Mat Combat Hostiles Destroyed 7 | . . 1 6 Guns 3 | . . . 3 Cannons 4 | . . 1 3 Classes Destroyed 3 | . . 1 2 Swarmer 4 | . . . 4 Sentry 2 | . . . 2 Assembled 1 | . . 1 . Best Kill Streak 4 | . . 1 4 Combat Bots Only 4 | . . 1 4 Max Kills in Single Turn 1 | . . 1 1 Gunslinging . | . . . . Exploded . | . . . . Melee . | . . . . Uniques/NPCs Destroyed . | . . . . Combat | -11 -10 -10 -9 -------- Run | Scr Mat Min Mat Damage Taken 1309 | . . 113 1196 Core 449 | . . 18 431 Absorbed by Shields . | . . . . Core Remaining (%) 96 | 100 . 92 . Volleys Fired 31 | . . 7 24 Largest 2 | . . 2 2 Hottest 126 | . . 77 126 Shots Fired 50 | . . 14 36 Gun 30 | . . 7 23 Cannon 20 | . . 7 13 Launcher . | . . . . Special . | . . . . Kinetic 27 | . . 14 13 Thermal 23 | . . . 23 Explosive . | . . . . Electromagnetic . | . . . . Robot Hit Streak 7 | . . 2 7 Robot Miss Streak 5 | . . 1 5 Penetration Max . | . . . . Secondary Targets . | . . . . Shots Hit Robots 18 | . . 2 16 Core Hits 9 | . . 2 7 Critical Hits 4 | . . . 4 Critical Kills 1 | . . . 1 Critical Parts Destroyed 3 | . . . 3 Melee Attacks . | . . . . Impact . | . . . . Slashing . | . . . . Piercing . | . . . . Sneak Attacks . | . . . . Combat Hostiles . | . . . . Follow-up Attacks . | . . . . Damage Inflicted 414 | . . 35 379 Guns 228 | . . 8 220 Cannons 171 | . . 19 152 Explosions . | . . . . Melee . | . . . . Ramming 15 | . . 8 7 Kinetic 179 | . . 27 152 Thermal 220 | . . . 220 Explosive . | . . . . Electromagnetic . | . . . . Impact . | . . . . Slashing . | . . . . Piercing . | . . . . Highest Corruption . | . . . . Average Corruption . | . . . . Corruption Purged . | . . . . Overload Shots . | . . . . Overflow Damage 8 | . . . 8 Projectiles 8 | . . . 8 Explosions . | . . . . Melee . | . . . . Knockbacks 3 | . . . 3 Impact . | . . . . Kinetic 3 | . . . 3 Secondary . | . . . . Self-Inflicted Damage 3 | . . 3 . Shots . | . . . . Rammed 2 | . . 1 1 Targets Rammed 4 | . . 2 2 Kicked 2 | . . 1 1 Crushed . | . . . . Highest Temperature 312 | . . 84 312 Average Temperature 107 | . . 38 127 Received Heat Transfer 240 | . . 9 231 Effects 2 | . . . 2 Interference 2 | . . . 2 Siege Activations . | . . . . Robots Corrupted . | . . . . Combat Hostiles . | . . . . Parts Fried . | . . . . Impact Corruptions . | . . . . Robots Melted . | . . . . Combat Hostiles . | . . . . Parts Melted 2 | . . . 2 Heat Transferred 481 | . . . 481 Parts Sabotaged . | . . . . Parts Stolen . | . . . . Parts Stripped . | . . . . Power Chain Reactions . | . . . . Missiles Intercepted . | . . . . Alert | -11 -10 -10 -9 ------- Run | Scr Mat Min Mat Peak Influence 161 | . 30 107 161 Average Influence 25 | . 7 15 86 Maximum Alert Level . | . . . . Low Security (%) 100 | 100 100 100 100 Level 1 . | . . . . Level 2 . | . . . . Level 3 . | . . . . Level 4 . | . . . . Level 5 . | . . . . High Security . | . . . . Max Security . | . . . . Squads Dispatched 2 | . 1 . 1 Investigation 1 | . 1 . . Extermination . | . . . . Reinforcement 1 | . . . 1 Assault . | . . . . Garrison . | . . . . Intercept . | . . . . Construction Impeded . | . . . . Haulers Reinforced . | . . . . Stealth | -11 -10 -10 -9 --------- Run | Scr Mat Min Mat Distress Signals 1 | . . . 1 Communications Jammed . | . . . . Distress Signals . | . . . . Times Spotted 32 | . 5 9 18 Peak Tracking Total 8 | . 2 3 8 Tactical Retreats 6 | . . 1 5 Traps | -11 -10 -10 -9 ------- Run | Scr Mat Min Mat Traps Triggered . | . . . . Indirectly . | . . . . Trap Hack Attempts . | . . . . Triggered . | . . . . Disarmed . | . . . . Reprogrammed . | . . . . Reused . | . . . . Traps Extracted . | . . . . Installed . | . . . . Triggered . | . . . . Machines | -11 -10 -10 -9 ---------- Run | Scr Mat Min Mat Machines Disabled 2 | . . . 2 Max in Single Turn 1 | . . . 1 Machines Sabotaged . | . . . . Garrisons Compromised . | . . . . Overloaded Fab Kills . | . . . . Fab Network Shutdowns . | . . . . Hacking | -11 -10 -10 -9 --------- Run | Scr Mat Min Mat Machines Accessed . | . . . . Terminals . | . . . . Fabricators . | . . . . Repair Stations . | . . . . Recycling Units . | . . . . Scanalyzers . | . . . . Garrison Access . | . . . . Total Hacks . | . . . . Successful . | . . . . Failed . | . . . . Catastrophic . | . . . . Database Lockouts . | . . . . Manual . | . . . . Terminals . | . . . . Fabricators . | . . . . Repair Stations . | . . . . Recycling Units . | . . . . Scanalyzers . | . . . . Garrison Access . | . . . . Terminal Hacks . | . . . . Fabricator Hacks . | . . . . Repair Station Hacks . | . . . . Recycling Unit Hacks . | . . . . Scanalyzer . | . . . . Garrison Access Hacks . | . . . . Unauthorized Hacks . | . . . . Terminals . | . . . . Fabricators . | . . . . Repair Stations . | . . . . Recycling Units . | . . . . Scanalyzers . | . . . . Garrison Access . | . . . . Data Cores Recovered . | . . . . Used . | . . . . Hacking Detections . | . . . . Full Trace Events . | . . . . Feedback Events . | . . . . Feedback Blocked . | . . . . Robot Schematics Acquired . | . . . . Robots Built . | . . . . Matter . | . . . . Time . | . . . . Total Robot Build Rating . | . . . . Part Schematics Acquired . | . . . . Parts Built . | . . . . Matter . | . . . . Time . | . . . . Total Part Build Rating . | . . . . Parts Repaired . | . . . . Time . | . . . . Parts Recycled . | . . . . Recycled Matter . | . . . . Retrieved Matter . | . . . . Retrieved Components . | . . . . Parts Scanalyzed . | . . . . Part Schematics Acquired . | . . . . Parts Damaged . | . . . . Bothacking | -11 -10 -10 -9 ------------ Run | Scr Mat Min Mat Used RIF Installer . | . . . . Robots Hacked . | . . . . Non-combat . | . . . . Combat . | . . . . Robot Hacks Applied . | . . . . Relay Couplers Released . | . . . . Robots Rewired . | . . . . Allies Hacked . | . . . . Hacks Repelled . | . . . . Allies | -11 -10 -10 -9 -------- Run | Scr Mat Min Mat Total Allies 3 | . . 3 . Largest Group 3 | . . 3 1 Highest-Rated Group 40 | . . 40 16 Highest-Rated Ally 16 | . . 16 16 Total Orders . | . . . . Ally Attacks 40 | . . 36 4 Total Damage 456 | . . 392 64 Kills 10 | . . 10 . Allies Corrupted . | . . . . Allies Melted . | . . . . Intel | -11 -10 -10 -9 ------- Run | Scr Mat Min Mat Robot Analysis Total . | . . . . Derelict Logs Recovered 3 | . . 3 . Drone Launches . | . . . . Drone Recoveries . | . . . . Exploration | -11 -10 -10 -9 ------------- Run | Scr Mat Min Mat Turns Passed 1922 | 61 537 993 331 Spaces Moved 1023 | 44 376 470 133 Core 23 | 10 3 . 10 Treads . | . . . . Legs 771 | 34 354 260 123 Wheels . | . . . . Hover 229 | . 19 210 . Flight . | . . . . Fastest Speed 50 | 50 116 116 120 Average Speed 147 | 104 131 160 163 Slowest Speed 450 | 120 400 360 450 Overloaded Moves . | . . . . Propulsion Burnouts . | . . . . Robots Hopped . | . . . . Cave-ins Triggered . | . . . . Exploration Rate (%) 35 | 3 62 60 18 Regions Visited 3 Branch Regions 1 Pre-discovered Areas 1 | . . 1 . Known Exits Taken . | . . . . Unknown Exits Taken 3 | 1 1 1 . Scrap Searched . | . . . . Spaces Dug . | . . . . Terrain Destroyed 6 | . . 1 5 Melee . | . . . . Projectile 6 | . . 1 5 AOE . | . . . . Actions | -11 -10 -10 -9 --------- Run | Scr Mat Min Mat Total 1383 | 59 420 697 207 Wait 259 | 3 16 205 35 Move 1020 | 43 375 469 133 Hop . | . . . . Pick Up 29 | 7 15 3 4 Fast Attach 4 | . . 3 1 Attach 13 | 6 3 . 4 Detach . | . . . . Swap 9 | . 5 2 2 Drop 14 | . 6 6 2 Fire 31 | . . 7 24 Melee . | . . . . Ram 1 | . . . 1 Kick 3 | . . 2 1 Crush . | . . . . Escape Stasis . | . . . . Rewire . | . . . . Trap . | . . . . Miscellaneous . | . . . . Route ------- -11/Scrapyard -10/Materials (discovered 2 exits: [*Mat] / [*Min]) -10/Mines (discovered 2 exits: [*Mat x2]) -9/Materials (discovered 1 exit: [*Sto]) History --------- Turn | Location | Event 5 | -11/Scrapyard | Discovered new exit (range 15) 62 | -11/Scrapyard | Entered Materials 313 | -10/Materials | Build established: Mutant 450 | -10/Materials | Discovered new exit (range 11) 487 | -10/Materials | Discovered new exit (range 8) 599 | -10/Materials | Entered Mines 602 | -10/Mines | Learned Materials garrison access intel 609 | -10/Mines | Discovered new exit (range 5) 619 | -10/Mines | A weapon hastily lodged in a ceiling crevice suddenly fell to the ground 668 | -10/Mines | Met a Derelict bent on vengeance 687 | -10/Mines | Learned location of Zion (-7) 693 | -10/Mines | Excavation squad dispatched 693 | -10/Mines | A large section of the Mines collapsed 766 | -10/Mines | Assisted by bots powering up and referring to "LRC-V3" 943 | -10/Mines | Excavation squad dispatched 1275 | -10/Mines | Found a damaged Exp. Sensor Array with a note attached 1291 | -10/Mines | Discovered new exit (range 6) 1309 | -10/Mines | Learned Materials emergency access door positions 1592 | -10/Mines | Entered Materials 1592 | -9/Materials | Accompanied by 1 ally 1592 | -9/Materials | Evolved 2 slots: Propulsion x1, Utility x1 1853 | -9/Materials | Discovered new exit (range 7) 1899 | -9/Materials | Core integrity fell below 50% 1915 | -9/Materials | Core integrity fell below 20% 1923 | -9/Materials | Destroyed by L-31 Rogue with Katana Last Messages --------------- Destroyed Lgt. Assault Rifle. HV Slug penetrates Electrolysis Chamber. HV Slug penetrates S-10 Pest. Destroyed Flight Unit. HV Slug penetrates Wall. K-01 Serf collects debris. ECM Suite destroyed. Ion Engine destroyed. K-01 Serf collects debris. Aluminum Leg destroyed. R-06 Scavenger collects Lgt. Assault Rifle. U-05 Engineer builds a Wall. K-01 Serf collects debris. Slammed into S-10 Pest. K-01 Serf collects debris. Bore Cannon destroyed. K-01 Serf cleans the Electrolysis Chamber. ALERT: Hostiles spotted, dispatching reinforcements to Terminal M007. K-01 Serf collects debris. [Achievement: First Step to Greatness] Map ----- +----------------------------------------------------+ | ?????????????????????????????????# ?# | | ?????????????????????????????????? ?# | | ??????????????????????????????????# #?########## | | ??????????????????????????????????# #??????????# | | ??????????????????????????????????# #?########## | | ??????????????????????????????????# #?# | | ???????????????????###########+#### #?# | | ????????????????? ### | | ????????????????? + """ """ | | ????????????????? ! """" ### """ """ | | ???????????????????????# """" #######?# """ """ | | ???????????????????????# """" #???????# """ """ | | ???????????????????????# #???????# | | ???????????????######??# #???????########## | | ???????????????# "T"?# """" #??#####?????????? | | ???????????????? # """" ## ####??????? | | ?????????????????""" # """" ???? | | ?????????????????""" + < ???? | | ?????????????????""" # ???? | | ???????????????????? ??# ##### ######????# | | ???????????????????????###+#############?????????? | | ???????????????????????# % #???????????? | | ?????????????????""" # " """ """ #???????????? | | ???????????????? # "k" """ """ #???????????? | | ???????????????? ???# " " """ """ #???????????? | | ???????????????????????# @lgY #???????????? | | ???????????????????????# ! sg #???????????? | | ???????????????????????###############???????????? | | ?????????????????????????????????????????????????? | | ?????????????????????????????????????????????????? | | ?????????????????????????????????????????????????? | | ?????????????????????????????????????????????????? | | ?????????????????????????????????????????????????? | | ?????????????????????????????????????????????????? | | ?????????????????????????????????????????????????? | | ?????????????????????????????????????????????????? | | ?????????????????????????????????????????????????? | | ?????????????????????????????????????????????????? | | ?????????????????????????????????????????????????? | | ?????????????????????????????????????????????????? | | ?????????????????????????????????????????????????? | | ?????????????????????????????????????????????????? | | ?????????????????????????????????????????????????? | | ?????????????????????????????????????????????????? | | ?????????????????????????????????????????????????? | | ?????????????????????????????????????????????????? | | ?????????????????????????????????????????????????? | | ?????????????????????????????????????????????????? | | ?????????????????????????????????????????????????? | | ?????????????????????????????????????????????????? | +----------------------------------------------------+ Best States ------------- Heat Dissipation 28 Energy Generation 10 Energy Capacity 250 Matter Stores 420 Matter Capacity 450 Sight Range 16 Terrain Scan Range 14 Terrain Scan Density 10 ECM Strength 1 Weapon Shielding 33 Evasion (%) 50 Item Schematics ----------------- None Robot Schematics ------------------ None Fabricated ------------ Nothing Alien Tech Used ----------------- None Achievements -------------- First Step to Greatness Challenges ------------ None Game ------ Seed FactoryGreatDoomcannon Manual? 0 Play Time 00:23:35 Cumulative 7.2 hours Start 2020.03.06 @ 21:49:05 End 2020.03.06 @ 22:20:19 Sessions 1 Manual Loads 0 Difficulty Rogue Special Mode None Game No. 19 Rogue 19 Adventurer 0 Explorer 0 Win Type - Total 0 Types 0/0/0/0/0/0/0 Lore% 2 Gallery% 9 Achievement% 2 Wizard Run 0 Options --------- ASCII 0 Keyboard 0 Movement Numpad Keybinds 0 Fullscreen 1 Font 18/X11Bold Map View 76x50 Tactical HUD 0 Map Filters NONE Filters NONE Steam 1 RUN: 476c667c-4d78-4ba0-9a0c-aa7830c7a115